Cogmind - Beta 16 @@@ ROGUE MODE // 2025.12.24 @ 20:30:33 Player: mirus Result: Destroyed by Y-45 Defender with Heavy Assault Rifle Performance ------------- Evolutions (0) 0 Regions Visited (2) 400 Robots Destroyed (11) 55 Value Destroyed (158) 158 Prototype IDs (0) 0 Alien Tech Used (0) 0 Bonus (0) 0 TOTAL SCORE: 613 Bonus ------- None Cogmind --------- Core Integrity 0/250 Matter 300/300 Energy 100/100 System Corruption 0% Temperature Cool (9) Movement Core (350) Ox6 Location -10/Mines Parts ------- > --- POWER (1) -------- (None) > --- PROPULSION (2) --- (None) > --- UTILITY (2) ------ Large Storage Unit > --- WEAPON (2) ------- (None) > --- INVENTORY (15) --- Light Ion Engine Compact Wheel Heat Sink Small Storage Unit Medium Matter Pod (100) Improved Terrain Scanner Tractor Beam Peak State ------------ > --- POWER ------------ Ion Engine > --- PROPULSION ------- Light Treads Light Treads > --- UTILITY ---------- Large Storage Unit Seismic Detector > --- WEAPON ----------- EM Pulse Gun Mining Laser > --- INVENTORY -------- Light Ion Engine Compact Wheel Heat Sink Small Storage Unit Medium Matter Pod Improved Terrain Scanner Tractor Beam Light Assault Rifle [Rating: 8] Favorites ----------- Power Ion Engine Engine Ion Engine Propulsion Light Treads Treads Light Treads Utility Seismic Detector Device Seismic Detector Storage Small Storage Unit Weapon EM Pulse Gun Energy Gun EM Pulse Gun Ballistic Gun Light Assault Rifle Special Weapon Mining Laser Build | -11 -10 -10 ------- Run | Yrd Mat Min Slots Evolved . | . . . Power . | . . . Propulsion . | . . . Utility . | . . . Weapon . | . . . Parts Attached 11 | 8 2 1 Power 1 | 1 . . Engine 1 | 1 . . Core . | . . . Reactor . | . . . Propulsion 2 | 2 . . Treads 2 | 2 . . Leg . | . . . Wheel . | . . . Hover . | . . . Flight . | . . . Utility 4 | 3 1 . Device 2 | 2 . . Storage 2 | 1 1 . Processor . | . . . Hackware . | . . . Protection . | . . . Artifact . | . . . Weapon 4 | 2 1 1 Energy Gun 2 | 1 . 1 Energy Cannon . | . . . Ballistic Gun 1 | 1 . . Ballistic Cannon . | . . . Launcher . | . . . Special Weapon 1 | . 1 . Impact Weapon . | . . . Slashing Weapon . | . . . Piercing Weapon . | . . . Special Melee Weapon . | . . . Unidentified Prototypes . | . . . Parts Lost 8 | . 2 6 Power 1 | . . 1 Propulsion 2 | . . 2 Utility 1 | . . 1 Weapon 4 | . 2 2 Highest Loss Streak 6 | . 2 6 To Critical Strikes . | . . . Average Backups 5 | 2 6 7 Power . | . 1 1 Propulsion . | . 1 1 Utility 2 | 1 4 5 Weapon . | . . . Tool/Special . | . . . Unused Backups 5 | . . 5 Power 1 | . . 1 Propulsion 1 | . . 1 Utility 3 | . . 3 Weapon . | . . . Tool/Special . | . . . Average Slot Usage (%) 92 | . 95 63 Engine 12 | . 14 3 Treads 27 | . 28 24 Device 13 | . 14 7 Storage 14 | . 14 14 Energy Gun 9 | . 10 3 Ballistic Gun 5 | . 5 10 Special Weapon 7 | . 8 . Peak Build Rating 8 | 7 8 6 Average Rating 6 | 6 6 3 On Entrance 4 | . 7 6 Avg Prop Armor Cover (%) . | . . . Naked Turns . | . . . Heaviest Build 27 | 14 27 22 Greatest Support 40 | 40 40 40 Greatest Overweight (x) 6 | 1 . 6 Average Overweight (x) . | . . 1 Largest Inventory Capacity 15 | 8 15 15 Average Capacity 9 | 7 10 15 Most Carried 8 | 6 8 7 Average Carried 5 | 2 6 7 Final Capacity 15 | 8 15 15 Final Carried 7 | 6 7 7 Class Distribution -------------------- 100% | Mutant Dominant Class ---------------- Mutant | -10/Materials Mutant | -10/Mines Resources | -11 -10 -10 ----------- Run | Yrd Mat Min Matter Collected 382 | 325 42 15 Remotely 15 | 15 . . Salvage Created 262 | 205 42 15 Parts 25 | 23 1 1 Haulers Intercepted . | . . . Recyclers Shooed 1 | 1 . . Parts Field Recycled . | . . . Retrieved Matter . | . . . Parts Self-Destructed . | . . . Prevented . | . . . Parts Restored . | . . . Kills | -11 -10 -10 ------- Run | Yrd Mat Min Combat Hostiles Destroyed 3 | . 2 1 Melee 1 | . . 1 Guns 1 | . 1 . Cannons 1 | . 1 . Classes Destroyed 4 | 3 1 . Worker 2 | 2 . . Tunneler 5 | 5 . . Recycler 1 | 1 . . Grunt 3 | . 2 1 Best Kill Streak 4 | 4 1 1 Combat Bots Only 1 | . 1 1 Max Kills in Single Turn 1 | 1 1 1 Gunslinging . | . . . Exploded . | . . . Melee 1 | . . 1 Uniques/NPCs Destroyed . | . . . Combat | -11 -10 -10 -------- Run | Yrd Mat Min Hostile Shots Fired 82 | . 28 54 Missed 16 | . 4 12 Hits 66 | . 24 42 Projectile 66 | . 24 42 Critical Strikes 2 | . 2 . Damage Taken 924 | . 329 595 Core 253 | . 43 210 Absorbed by Shields . | . . . Core Remaining (%) 100 | 100 . . Volleys Fired 66 | 25 30 11 Largest 2 | 2 2 1 Hottest 140 | 60 140 40 Shots Fired 95 | 50 34 11 Gun 86 | 50 25 11 Cannon . | . . . Launcher . | . . . Special 9 | . 9 . Kinetic 50 | 25 17 8 Thermal 12 | . 9 3 Explosive . | . . . Electromagnetic 33 | 25 8 . Robot Hit Streak 7 | 6 4 7 Robot Miss Streak 6 | 3 6 5 Penetration Max . | . . . Secondary Targets . | . . . Shots Hit Robots 53 | 30 14 9 Core Hits 24 | 16 5 3 Critical Kills . | . . . Critical Parts Destroyed 1 | . 1 . Critical Strikes 5 | 4 1 . Destroy 1 | . 1 . Corrupt 4 | 4 . . Melee Attacks . | . . . Impact . | . . . Slashing . | . . . Piercing . | . . . Sneak Attacks . | . . . Combat Hostiles . | . . . Follow-up Attacks . | . . . Damage Inflicted 607 | 332 184 91 Guns 505 | 331 88 86 Cannons . | . . . Explosions . | . . . Melee . | . . . Ramming 6 | 1 . 5 Kinetic 229 | 106 70 53 Thermal 129 | . 96 33 Explosive . | . . . Electromagnetic 243 | 225 18 . Impact . | . . . Slashing . | . . . Piercing . | . . . Highest Corruption . | . . . Average Corruption . | . . . Corruption Purged . | . . . Corruption Blocked . | . . . Overload Shots . | . . . Overflow Damage . | . . . Projectiles . | . . . Explosions . | . . . Melee . | . . . Knockbacks . | . . . Impact . | . . . Kinetic . | . . . Secondary . | . . . Self-Inflicted Damage . | . . . Shots . | . . . Rammed 2 | 1 . 1 Targets Rammed 3 | 1 . 2 Kicked . | . . . Crushed 1 | . . 1 Highest Temperature 210 | 40 210 25 Average Temperature 43 | 16 68 10 Received Heat Transfer 462 | . 222 240 Siege Activations . | . . . Martial Activations . | . . . Shielding Activations . | . . . Robots Disrupted . | . . . Combat Hostiles . | . . . Robots Corrupted . | . . . Combat Hostiles . | . . . Parts Fried 2 | 2 . . Impact Corruptions . | . . . Robots Melted . | . . . Combat Hostiles . | . . . Parts Melted . | . . . Heat Transferred 275 | . 200 75 Parts Sabotaged . | . . . Parts Stolen . | . . . Parts Stripped . | . . . Power Chain Reactions . | . . . Alert | -11 -10 -10 ------- Run | Yrd Mat Min Maximum Alert Level . | . . . Low Security (%) 100 | 100 100 100 Level 1 . | . . . Level 2 . | . . . Level 3 . | . . . Level 4 . | . . . Level 5 . | . . . High Security . | . . . Max Security . | . . . Peak Influence 30 | 10 30 20 Initial 3 | . . 3 Average 4 | 1 6 4 Influence Increases 135 | 40 75 20 Destroy 0b10 Robot/C 60 | . 40 20 Destroy 0b10 Robot/NC 40 | 40 . . Destroy Leader 10 | . 10 . Successful Hack 20 | . 20 . Destroy Structure 5 | . 5 . Influence Decreases 135 | 40 65 30 Entered New Map 7 | . . 7 Time Decay 95 | 40 55 . Lost Part 33 | . 10 23 Squads Dispatched 2 | . 2 . Investigation . | . . . Extermination . | . . . Reinforcement 2 | . 2 . Assault . | . . . Garrison . | . . . Intercept . | . . . Searches Triggered . | . . . Construction Impeded . | . . . Haulers Reinforced . | . . . Active Scanning Responses . | . . . Cargo Convoy Interrupts . | . . . Stealth | -11 -10 -10 --------- Run | Yrd Mat Min Distress Signals . | . . . Communications Jammed . | . . . Distress Signals . | . . . Times Spotted 9 | . 5 4 Peak Tracking Total 4 | . 3 4 Tactical Retreats . | . . . Traps | -11 -10 -10 ------- Run | Yrd Mat Min Traps Triggered . | . . . Indirectly . | . . . Trap Hack Attempts . | . . . Triggered . | . . . Disarmed . | . . . Reprogrammed . | . . . Reused . | . . . Traps Extracted . | . . . Installed . | . . . Triggered . | . . . Machines | -11 -10 -10 ---------- Run | Yrd Mat Min Machines Disabled . | . . . Max in Single Turn . | . . . Machines Repaired . | . . . Machines Dismantled . | . . . Machines Sabotaged . | . . . Overloaded Fab Kills . | . . . Hacking | -11 -10 -10 --------- Run | Yrd Mat Min Machines Accessed 2 | . 2 . Terminals 2 | . 2 . Fabricators . | . . . Repair Stations . | . . . Recycling Units . | . . . Scanalyzers . | . . . Garrison Access . | . . . Total Hacks 3 | . 3 . Successful 2 | . 2 . Failed 1 | . 1 . Catastrophic . | . . . Database Lockouts . | . . . Manual 2 | . 2 . Terminals 3 | . 3 . Fabricators . | . . . Repair Stations . | . . . Recycling Units . | . . . Scanalyzers . | . . . Garrison Access . | . . . Terminal Hacks 2 | . 2 . Zone Layout 2 | . 2 . Fabricator Hacks . | . . . Repair Station Hacks . | . . . Recycling Unit Hacks . | . . . Scanalyzer . | . . . Garrison Access Hacks . | . . . Unauthorized Hacks . | . . . Terminals . | . . . Fabricators . | . . . Repair Stations . | . . . Recycling Units . | . . . Scanalyzers . | . . . Garrison Access . | . . . Data Cores Recovered . | . . . Used . | . . . Hacking Detections 1 | . 1 . Full Trace Events . | . . . Feedback Events . | . . . Feedback Blocked . | . . . Robot Schematics Acquired . | . . . Robots Built . | . . . Authchips . | . . . Time . | . . . Total Robot Build Rating . | . . . Part Schematics Acquired . | . . . Parts Built . | . . . Authchips . | . . . Time . | . . . Total Part Build Rating . | . . . Part Studies Acquired . | . . . Parts Repaired . | . . . Time . | . . . Parts Recycled . | . . . Recycled Matter . | . . . Retrieved Matter . | . . . Retrieved Components . | . . . Parts Scanalyzed . | . . . Part Schematics Acquired . | . . . Parts Damaged . | . . . Bothacking | -11 -10 -10 ------------ Run | Yrd Mat Min Used RIF Installer . | . . . Robots Hacked . | . . . Non-combat . | . . . Combat . | . . . Robot Hacks Applied . | . . . Relay Couplers Released . | . . . Fabnet Peak Effective % . | . . . Robots Rewired . | . . . Allies Hacked . | . . . Hacks Repelled . | . . . Allies | -11 -10 -10 -------- Run | Yrd Mat Min Total Allies . | . . . Largest Group . | . . . Highest-Rated Group . | . . . Highest-Rated Ally . | . . . Total Orders . | . . . Ally Attacks . | . . . Total Damage . | . . . Kills . | . . . Allies Corrupted . | . . . Allies Melted . | . . . Intel | -11 -10 -10 ------- Run | Yrd Mat Min Active Infowar (turns) 461 | 131 314 16 Seismic 461 | 131 314 16 Robot Analysis Total . | . . . Derelict Logs Recovered . | . . . Drone Launches . | . . . Drone Recoveries . | . . . Exploration | -11 -10 -10 ------------- Run | Yrd Mat Min Turns Passed 607 | 258 314 35 Spaces Moved 254 | 108 141 5 Core 5 | 4 . 1 Treads 249 | 104 141 4 Legs . | . . . Wheels . | . . . Hover . | . . . Flight . | . . . Fastest Speed 50 | 50 160 160 Average Speed 159 | 157 160 198 Slowest Speed 350 | 160 160 350 Overloaded Moves . | . . . Propulsion Burnouts . | . . . Robots Hopped . | . . . Potential Cave-ins . | . . . Cave-ins Triggered . | . . . Exploration Rate (%) 16 | 5 40 5 Regions Visited 2 Branch Regions 1 Pre-discovered Areas . | . . . Known Exits Taken . | . . . Unknown Exits Taken 2 | 1 1 . Scrap Searched . | . . . Spaces Dug 4 | . 4 . Terrain Destroyed 5 | . 5 . Melee . | . . . Projectile 5 | . 5 . AOE . | . . . Terrain Rammed . | . . . Walls Destroyed . | . . . Machines Disabled . | . . . Actions | -11 -10 -10 --------- Run | Yrd Mat Min Total 346 | 147 180 19 Wait 6 | . 6 . Move 252 | 107 140 5 Hop . | . . . Pick Up 7 | 6 1 . Fast Attach 8 | 7 . 1 Attach 1 | . 1 . Detach . | . . . Swap 3 | 1 2 . Drop . | . . . Fire 66 | 25 30 11 Melee . | . . . Ram . | . . . Kick . | . . . Crush 3 | 1 . 2 Escape Stasis . | . . . Rewire . | . . . Trap . | . . . Miscellaneous . | . . . Route ------- -11/Scrapyard -10/Materials -10/Mines History --------- Turn | Location | Event 10 | -11/Scrapyard | Discovered new exit (range 15) 259 | -11/Scrapyard | Entered Materials 328 | -10/Materials | Build established: Mutant 429 | -10/Materials | Discovered new exit (range 20) 573 | -10/Materials | Entered Mines 602 | -10/Mines | Core integrity fell below 50% 608 | -10/Mines | Core integrity fell below 20% 608 | -10/Mines | Destroyed by Y-45 Defender with Heavy Assault Rifle Last Messages --------------- Acquired 42 matter. K-01 Serf collects debris. U-05 Engineer builds a Wall. O-16 Technician: "IFF HANDSHAKE FAILED. SECURING TERMINAL." U-05 Engineer builds a Wall. ALERT: Hostiles spotted, dispatching reinforcements to Terminal M007. LOCATION=UNKNOWN GOAL=ESCAPE Ion Engine destroyed. Seismic Detector destroyed. Lgt. Assault Rifle destroyed. Slammed into G-34 Mercenary. Crushed G-34 Mercenary. G-34 Mercenary destroyed. Acquired 15 matter. Acquired Sml. Laser. Lgt. Treads destroyed. Sml. Laser destroyed. Map ----- +----------------------------------------------------+ | ??????????????????????????????????? | | ??????????????????????????????????? | | ??????????????????????????????????? | | ??????????????????????????????????? | | ??????????????????????????????????? | | ??????????????????????????????????? | | ??????????????????????????????????? | | ??????????????????????????????????? | | ??????????????????????????????????? | | ??????????????????????????????????? | | ??????????????????????????????????? | | ??????????????????????????????????? | | ??????????????????????????????????? | | ??????????????????????????????????? | | ??????????????????????????????????? | | ??????????????????????????????????? | | ??????????????????????????????????? | | ??????????????????????????????????? | | ?????####?????????????????????????? | | ????## ##????????????????????????? | | ????# ##???????????????????????? | | ????# ##???????#??????????????? | | ?????# ###### #??????????????? | | ?????# g $ #??????????????? | | ?????# #??????????????? | | ?????# @ ### ##???????????????? | | ?????# Y ##????????????????????? | | ?????## ## #?????????????????????? | | ??????####?Y#?????????????????????? | | ??????????? ?????????????????????? | | ??????????? ????????????????????? | | ??????????? ???????????????????? | | ??????????? ??????????????????? | | ???????????? ?????????????????? | | ???????????? ? ?????????????????? | | ???????????? ?#????????????????? | | ????????????####??????????????????? | | ??????????????????????????????????? | | ??????????????????????????????????? | | ??????????????????????????????????? | | ??????????????????????????????????? | | ??????????????????????????????????? | | ??????????????????????????????????? | | ??????????????????????????????????? | | ??????????????????????????????????? | | ??????????????????????????????????? | | ??????????????????????????????????? | | ??????????????????????????????????? | | ??????????????????????????????????? | | ??????????????????????????????????? | +----------------------------------------------------+ Best States ------------- Heat Dissipation 25 Energy Generation 10 Energy Capacity 250 Matter Stores 300 Matter Capacity 300 Sight Range 16 Terrain Scan Density 10 Evasion (%) 40 Recoil Reduction 2 Item Schematics ----------------- None Robot Schematics ------------------ None Fabricated ------------ Nothing Repaired ---------- Nothing Studied --------- None Alien Tech Used ----------------- None Achievements -------------- Ghost 'Em Challenges ------------ None Game ------ Seed CoordinationParticleCorpse Manual? 0 Play Time 00:12:40 Cumulative 4.0 hours Start 2025.12.24 @ 20:16:31 End 2025.12.24 @ 20:30:33 Sessions 1 Manual Loads 0 Difficulty Rogue Special Mode None Game No. 8 Rogue 8 Adventurer 0 Explorer 0 Win Type - Total 0 Types 0/0/0/0/0/0/0/0/0/0 Lore% 0 Gallery% 8 Achievement% 7 Wizard Run 0 Options --------- Layout 1 ASCII 0 Keyboard 0 Movement Mouse Keybinds 0 Fullscreen 1 Font 24/Smallcaps Map View 50x35 Zoom Use 0% Tactical HUD 0 Map Filters NONE Filters NONE Steam 1 RUN: f141e462-d081-4673-a40a-1b54c5708a18